bitfinex-derivatives/quotes_SOLF0:USTF0_20250307
["timestamp","ask_amount","ask_price","bid_price","bid_amount"]
[1741320974539,2.0292,141.35,141.32,12.19273486]
[1741320974839,7.0754,141.33,141.32,12.19273486]
[1741320975039,2.0292,141.35,141.32,12.19273486]
[1741320975247,2.0292,141.35,141.34,12.14320275]
[1741320975839,2.0292,141.35,141.32,12.19273486]
[1741320976045,2.0292,141.35,141.34,12.14320275]
[1741320977649,9.1036,141.35,141.34,12.14320275]
[1741320978140,2.0292,141.35,141.34,12.14320275]
[1741320980239,0.05375346,141.36,141.34,12.14320275]
[1741320982538,7.0744,141.35,141.34,12.14320275]
[1741320983551,7.12805346,141.36,141.34,12.14320275]
[1741320983735,0.05375346,141.36,141.32,0.04953211]
[1741320984254,12.14320275,141.34,141.28,12.14320275]
[1741320984444,1.9737,141.33,141.28,12.14320275]
[1741320984641,7.077,141.3,141.28,12.14320275]
[1741320984842,1.9737,141.33,141.28,12.14320275]
[1741320985251,7.0764,141.32,141.28,12.14320275]
[1741320985553,7.12583589,141.32,141.3,12.14320275]
[1741320985746,7.0764,141.31,141.3,12.14320275]
[1741320985947,0.04943589,141.32,141.29,0.04999585]
[1741320986344,7.0764,141.31,141.29,0.04999585]
[1741320986748,0.04943589,141.32,141.3,12.14320275]
[1741320989153,7.12553589,141.32,141.3,12.14320275]
[1741320990148,0.04943589,141.32,141.3,19.22010275]
[1741320990553,0.04943589,141.32,141.3,12.14320275]
[1741320991551,7.12543589,141.32,141.3,12.14320275]
[1741320991944,0.04943589,141.32,141.3,12.14320275]
[1741320992144,7.0764,141.31,141.3,12.14320275]
[1741320992558,0.04943589,141.32,141.3,12.14320275]
[1741320992760,7.12553589,141.32,141.3,12.14320275]
[1741320995655,7.12553589,141.32,141.29,0.04999585]
[1741320995656,0.04943589,141.32,141.29,12.1931986]
[1741320996156,7.0765,141.31,141.29,12.1931986]
[1741320996552,0.04943589,141.32,141.29,12.1931986]
[1741320997459,7.12553589,141.32,141.29,12.1931986]
[1741320999453,7.0766,141.31,141.29,12.1931986]
[1741320999657,0.04943589,141.32,141.29,0.04999585]
[1741321000157,7.0769,141.3,141.29,0.04999585]
[1741321001361,7.078,141.28,141.25,12.14320275]
[1741321001963,12.14320275,141.29,141.23,12.14320275]
[1741321002256,1.8646,141.28,141.23,12.14320275]
[1741321002458,0.04857435,141.27,141.25,0.05122123]
[1741321002957,7.0793,141.26,141.25,0.05122123]
[1741321004265,0.04857435,141.27,141.23,39.37482393]
[1741321004565,12.14320275,141.24,141.23,39.37482393]
[1741321004753,12.14320275,141.24,141.23,33.20622393]
[1741321005163,28.87857435,141.27,141.23,33.20622393]
[1741321005360,12.14320275,141.24,141.23,33.20622393]
[1741321005564,19.22320275,141.24,141.23,33.20622393]
[1741321005761,19.22320275,141.24,141.23,23.95302393]
[1741321005958,7.0805,141.23,141.22,10.27143655]
[1741321006163,34.0005,141.23,141.22,3.655e-05]
[1741321007657,37.5405,141.23,141.22,3.655e-05]
[1741321008058,7.083,141.18,141.17,9.83103726]
[1741321009261,12.14320275,141.19,141.17,9.83103726]
[1741321009262,12.19291549,141.19,141.17,9.83103726]
[1741321009465,19.27551549,141.19,141.17,9.83103726]
[1741321010260,0.04971274,141.19,141.17,9.83103726]
[1741321011064,0.04971274,141.19,141.16,0.05062806]
[1741321011464,0.04971274,141.19,141.16,12.19383081]
[1741321011671,0.04971274,141.19,141.18,12.14320275]
[1741321012762,26.94,141.22,141.18,12.14320275]
[1741321012972,39.08320275,141.22,141.16,39.13383081]
[1741321013159,7.0826,141.19,141.16,12.19383081]
[1741321013965,7.1291054,141.19,141.16,12.19383081]
[1741321014167,7.0835,141.17,141.16,0.05062806]
[1741321015868,19.22630275,141.18,141.16,0.05062806]
[1741321016768,12.14320275,141.18,141.16,0.05062806]
[1741321016970,7.0835,141.17,141.16,0.05062806]
[1741321019074,12.14320275,141.18,141.16,0.05062806]
[1741321019276,19.22620275,141.18,141.16,0.05062806]
[1741321020276,12.14320275,141.18,141.16,0.05062806]
[1741321020483,7.0835,141.17,141.16,0.05062806]
[1741321020786,34.0235,141.17,141.16,0.05062806]
[1741321024391,34.0231,141.18,141.16,0.05062806]
[1741321025284,7.0835,141.17,141.16,0.05062806]
[1741321027582,39.08320275,141.18,141.16,0.05062806]
[1741321027779,34.0231,141.18,141.16,0.05062806]
[1741321028182,26.94,141.18,141.16,0.05062806]
[1741321028378,12.14320275,141.17,141.16,0.05062806]
[1741321029390,19.22670275,141.17,141.16,0.05062806]
[1741321032188,19.22670275,141.17,141.16,2.806e-05]
[1741321042293,7.0835,141.17,141.16,2.806e-05]
[1741321042601,0.0465054,141.19,141.16,2.806e-05]
[1741321043298,7.1290054,141.19,141.16,2.806e-05]
[1741321043696,7.1290054,141.19,141.16,1.95762806]
[1741321044304,0.0465054,141.19,141.16,1.95762806]
[1741321044496,90.76684651,141.23,141.18,19.22620275]
[1741321044697,78.62364376,141.23,141.18,19.22620275]
[1741321044899,78.62364376,141.23,141.18,12.14320275]
[1741321045704,7.0823,141.2,141.19,0.05327062]
[1741321046201,0.04525645,141.22,141.19,0.05327062]
[1741321047197,12.1884592,141.22,141.19,0.05327062]
[1741321047794,7.0819,141.21,141.19,0.05327062]
[1741321048500,12.1884592,141.22,141.19,0.05327062]
[1741321050209,19.2694592,141.22,141.19,0.05327062]
[1741321051500,0.04525645,141.22,141.19,0.05327062]
[1741321051696,0.04525645,141.22,141.2,12.14320275]
[1741321051897,0.04525645,141.22,141.21,1.8647]
[1741321052103,7.0796,141.25,141.21,1.8647]
[1741321052503,12.14320275,141.26,141.21,1.8647]
[1741321053200,26.92,141.27,141.22,0.05332339]
[1741321053201,0.05345918,141.25,141.22,0.05332339]
[1741321053402,0.05345918,141.25,141.22,12.19652614]
[1741321053796,12.19666193,141.25,141.22,0.05332339]
[1741321054007,12.14320275,141.23,141.22,0.05332339]
[1741321054210,0.05345918,141.25,141.22,0.05332339]
[1741321054502,12.19666193,141.25,141.22,0.05332339]
[1741321054703,7.08,141.24,141.22,0.05332339]
[1741321054909,12.19666193,141.25,141.22,0.05332339]
[1741321055608,7.0805,141.23,141.22,0.05332339]
[1741321062513,0.05345918,141.25,141.22,0.05332339]
[1741321064011,7.13325918,141.25,141.22,0.05332339]
[1741321066218,7.08,141.24,141.22,0.05332339]
[1741321066612,0.05345918,141.25,141.22,0.05332339]
[1741321066919,7.0805,141.23,141.22,0.05332339]
[1741321071322,19.22370275,141.23,141.22,0.05332339]
[1741321071621,7.0805,141.23,141.22,0.05332339]
[1741321071921,19.27646193,141.25,141.22,0.05332339]
[1741321072123,12.19666193,141.25,141.22,0.05332339]
[1741321072325,7.0805,141.23,141.22,0.05332339]
[1741321072819,19.22370275,141.23,141.22,0.05332339]
[1741321074727,26.88,141.24,141.22,0.05332339]
[1741321075722,33.9604,141.24,141.22,0.05332339]
[1741321076128,26.88,141.24,141.22,0.05332339]
[1741321076524,12.14320275,141.29,141.23,12.14320275]
[1741321076731,12.14320275,141.29,141.25,12.14320275]
[1741321076732,7.0775,141.29,141.25,12.14320275]
[1741321076928,44.48837765,141.3,141.25,12.14320275]
[1741321077129,44.48837765,141.3,141.26,7.0789]
[1741321077432,17.60837765,141.3,141.26,7.0789]
[1741321077727,17.60837765,141.3,141.25,12.14320275]
[1741321077926,0.0483847,141.29,141.27,0.0541945]
[1741321079529,7.1261847,141.29,141.27,0.0541945]
[1741321079733,0.0483847,141.29,141.27,0.0541945]
[1741321080818,0.0483847,141.29,141.27,12.19739725]
[1741321081030,26.88,141.34,141.27,12.19739725]
[1741321081219,7.0758,141.33,141.29,12.14320275]
[1741321081423,26.88,141.34,141.29,12.14320275]
[1741321082027,12.14320275,141.33,141.27,14.18050275]
[1741321082327,0.05054171,141.33,141.3,3.291e-05]
[1741321082631,7.0788,141.27,141.23,12.14320275]
[1741321082832,7.0788,141.27,141.23,14.18050275]
[1741321083131,26.88,141.3,141.25,12.14320275]
[1741321083634,0.05400974,141.29,141.26,0.04842769]
[1741321084133,7.13160974,141.29,141.26,0.04842769]
[1741321085633,7.0785,141.27,141.26,0.04842769]
[1741321086323,12.14320275,141.28,141.26,0.04842769]
[1741321086733,0.05400974,141.29,141.26,0.04842769]
[1741321086937,0.05400974,141.29,141.27,12.14320275]
[1741321087631,12.14320275,141.34,141.27,12.14320275]
[1741321087935,12.14320275,141.34,141.29,12.14320275]
[1741321088533,39.00320275,141.35,141.29,12.14320275]
[1741321088730,39.00320275,141.35,141.31,0.05406308]
[1741321088928,0.05189552,141.33,141.31,0.05406308]
[1741321090146,7.12739552,141.33,141.31,0.05406308]
[1741321091236,7.0759,141.32,141.31,0.05406308]
[1741321095142,33.9359,141.32,141.31,6.308e-05]
[1741321096239,7.0795,141.25,141.24,1.8917]
[1741321096440,12.14320275,141.27,141.22,233.66]
[1741321096743,12.14320275,141.27,141.21,12.14320275]
[1741321097445,12.1960814,141.25,141.23,0.04802899]
[1741321097638,12.1960814,141.25,141.23,2.899e-05]
[1741321098537,7.08,141.24,141.23,2.899e-05]
[1741321099443,33.94,141.24,141.23,2.899e-05]
[1741321103241,46.08320275,141.24,141.23,2.899e-05]
[1741321104349,19.22320275,141.24,141.23,2.899e-05]
[1741321104642,7.13247865,141.25,141.23,2.899e-05]
[1741321104847,0.05287865,141.25,141.23,2.899e-05]
[1741321105148,7.08,141.24,141.23,2.899e-05]
[1741321105347,19.22320275,141.24,141.23,2.899e-05]
[1741321108552,12.1960814,141.25,141.23,2.899e-05]
[1741321108753,19.2755814,141.25,141.23,2.899e-05]
[1741321109251,7.08,141.24,141.23,2.899e-05]
[1741321115043,19.00582132,141.25,141.16,3.7858]
[1741321115247,7.0832,141.18,141.16,3.7858]
[1741321115542,7.0832,141.18,141.16,1.8784]
[1741321115753,7.0835,141.17,141.16,1.8784]
[1741321117046,7.0835,141.17,141.15,0.04475051]
[1741321117245,0.05085342,141.18,141.15,0.04475051]
[1741321117848,7.084,141.16,141.15,0.04475051]
[1741321118058,0.05085342,141.18,141.15,0.04475051]
[1741321119056,26.86,141.21,141.15,0.04475051]
[1741321119449,26.86,141.21,141.15,18.99769318]
[1741321119652,26.86,141.24,141.15,18.99769318]
[1741321119946,26.86,141.24,141.14,28.8175]
[1741321119947,26.86,141.24,141.17,18.95294267]
[1741321120152,0.05063565,141.21,141.19,7.0821]
[1741321120351,0.05063565,141.21,141.18,0.04603154]
[1741321121665,0.05063565,141.21,141.18,26.90603154]
[1741321122054,0.05063565,141.21,141.19,7.0822]
[1741321122250,33.9403,141.24,141.19,7.0822]
[1741321122665,7.0808,141.23,141.18,33.98883154]
[1741321123467,0.05025257,141.22,141.18,33.98883154]
[1741321124058,7.0816,141.21,141.18,26.90603154]
[1741321124258,7.0816,141.21,141.18,28.92123154]
[1741321124857,7.13135257,141.22,141.18,28.92123154]
[1741321126165,0.05025257,141.22,141.18,28.92123154]
[1741321127265,0.05025257,141.22,141.19,7.0821]
[1741321127460,0.05025257,141.22,141.2,1.9618]
[1741321128565,0.05025257,141.22,141.2,9.0437]
[1741321129576,7.079,141.26,141.2,1.9618]
[1741321129779,26.84,141.28,141.2,1.9618]
[1741321130181,7.0788,141.27,141.22,7.0808]
[1741321130479,26.84,141.28,141.22,7.0808]
[1741321130674,20.83704267,141.3,141.24,0.05424551]
[1741321130881,0.04846706,141.26,141.24,7.13414551]
[1741321131080,0.04846706,141.26,141.24,0.05424551]
[1741321131279,7.12756706,141.26,141.24,0.05424551]
[1741321132580,0.04846706,141.26,141.24,0.05424551]
[1741321133183,0.04846706,141.26,141.24,12.17929607]
[1741321133577,0.04846706,141.26,141.24,19.25909607]
[1741321133780,0.04846706,141.26,141.24,12.17929607]
[1741321134181,0.04846706,141.26,141.25,7.0795]
[1741321134381,12.12505056,141.31,141.24,12.17929607]
[1741321134886,7.0774,141.3,141.25,7.0791]
[1741321135482,0.0486627,141.29,141.25,7.0791]
[1741321136887,0.0486627,141.29,141.26,1.9637]
[1741321138383,0.0486627,141.29,141.26,14.08875056]
[1741321139980,7.0782,141.28,141.26,14.08875056]
[1741321140182,0.0486627,141.29,141.26,14.08875056]
[1741321140381,0.0486627,141.29,141.26,1.9637]
[1741321140580,12.17371326,141.29,141.24,12.17929607]
[1741321140786,12.12505056,141.27,141.24,0.05424551]
[1741321140986,12.12505056,141.25,141.24,0.05424551]
[1741321141384,19.20455056,141.25,141.24,0.05424551]
[1741321141585,7.0795,141.25,141.24,0.05424551]
[1741321141886,12.17576422,141.26,141.24,0.05424551]
[1741321142086,7.0795,141.25,141.24,0.05424551]
[1741321143890,12.17576422,141.26,141.24,0.05424551]
[1741321144489,0.05071366,141.26,141.24,0.05424551]
[1741321146391,7.13011366,141.26,141.24,0.05424551]
[1741321146790,0.05071366,141.26,141.24,0.05424551]
[1741321148191,26.82,141.28,141.24,0.05424551]
[1741321148390,12.12505056,141.3,141.25,12.12505056]
[1741321148788,7.0779,141.29,141.25,12.12505056]
[1741321148993,12.12505056,141.3,141.25,12.12505056]
[1741321149391,0.04718759,141.29,141.25,12.12505056]
[1741321149895,0.04718759,141.29,141.24,2.10124551]
[1741321150086,0.04718759,141.29,141.27,12.12505056]
[1741321150291,0.04718759,141.29,141.25,12.12505056]
[1741321152392,7.0781,141.28,141.25,12.12505056]
[1741321152592,0.04718759,141.29,141.25,12.12505056]
[1741321153095,7.12478759,141.29,141.25,12.12505056]
[1741321153693,0.04718759,141.29,141.25,12.12505056]
[1741321153899,7.0781,141.28,141.25,12.12505056]
[1741321154196,12.17223815,141.29,141.24,2.10124551]
[1741321154501,7.0785,141.27,141.24,2.10124551]
[1741321154701,12.17223815,141.29,141.24,2.10124551]
[1741321154999,12.17223815,141.29,141.26,7.0788]
[1741321155000,0.04718759,141.29,141.26,7.0788]
[1741321155509,0.04718759,141.29,141.25,12.12505056]
[1741321155998,12.17223815,141.29,141.24,2.10124551]
[1741321156188,7.0788,141.27,141.24,2.10124551]
[1741321157694,12.17223815,141.29,141.24,14.22629607]
[1741321157901,7.0781,141.28,141.24,14.22629607]
[1741321158400,0.04718759,141.29,141.24,14.22629607]
[1741321158803,0.04718759,141.29,141.26,12.12505056]
[1741321159703,0.04718759,141.29,141.24,14.22629607]
[1741321160196,7.12468759,141.29,141.25,7.0794]
[1741321160401,7.12468759,141.29,141.24,14.22629607]
[1741321160890,0.04718759,141.29,141.24,14.22629607]
[1741321161489,7.0781,141.28,141.24,14.22629607]
[1741321161708,0.04718759,141.29,141.24,14.22629607]
[1741321162299,7.12498759,141.29,141.24,21.30589607]
[1741321163605,12.17223815,141.29,141.24,14.22629607]
[1741321164302,7.0788,141.27,141.24,12.17929607]
[1741321165006,12.17223815,141.29,141.24,0.05424551]
[1741321165399,26.82,141.28,141.24,0.05424551]
[1741321166206,7.0793,141.26,141.24,0.05424551]
[1741321169112,7.0786,141.27,141.24,0.05424551]
[1741321169609,7.12468759,141.29,141.24,12.17929607]
[1741321169807,0.04718759,141.29,141.26,12.12505056]
[1741321170522,12.17223815,141.29,141.24,12.17929607]
[1741321170714,7.079,141.26,141.24,0.05424551]
[1741321170908,0.04718759,141.29,141.24,0.05424551]
[1741321171215,12.12505056,141.28,141.24,0.05424551]
[1741321171415,7.0786,141.27,141.24,0.05424551]
[1741321171712,12.12505056,141.28,141.24,0.05424551]
[1741321173008,7.0793,141.26,141.24,0.05424551]
[1741321174422,7.0795,141.25,141.24,0.05424551]
[1741321175116,7.13065832,141.26,141.24,0.05424551]
[1741321175723,0.05155832,141.26,141.24,0.05424551]
[1741321176417,7.0795,141.25,141.24,0.05424551]
[1741321176623,12.12505056,141.25,141.14,55.81470528]
[1741321176815,12.12505056,141.23,141.16,12.12505056]
[1741321177015,12.12505056,141.21,141.16,12.12505056]
[1741321177318,12.12505056,141.21,141.15,3.8783]
[1741321177825,0.04901482,141.19,141.17,0.04861917]
[1741321180027,19.25666538,141.19,141.17,0.04861917]
[1741321180827,12.17406538,141.19,141.17,0.04861917]
[1741321181124,0.04901482,141.19,141.17,0.04861917]
[1741321183224,0.04901482,141.19,141.18,12.12505056]
[1741321186128,0.04901482,141.19,141.18,19.20805056]
[1741321187427,12.12505056,141.24,141.19,7.082]
[1741321187628,12.12505056,141.24,141.16,26.8]
[1741321187629,12.12505056,141.26,141.2,12.12505056]
[1741321187931,38.92505056,141.27,141.22,12.12505056]
[1741321188328,38.92505056,141.27,141.2,38.92505056]
[1741321188535,7.0795,141.25,141.2,38.92505056]
[1741321188827,0.05128777,141.25,141.22,0.05166201]
[1741321189729,0.05128777,141.25,141.22,12.17671257]
[1741321192927,12.12505056,141.24,141.22,0.05166201]
[1741321194238,7.0805,141.23,141.22,0.05166201]
[1741321195733,7.0805,141.23,141.22,6.201e-05]
[1741321195933,33.8805,141.23,141.22,6.201e-05]
[1741321204549,7.0805,141.23,141.22,6.201e-05]
[1741321207441,12.17633833,141.25,141.22,6.201e-05]
[1741321207634,0.05128777,141.25,141.22,6.201e-05]
[1741321207835,0.05128777,141.25,141.22,12.12511257]
[1741321209038,0.05128777,141.25,141.24,12.12505056]
[1741321209434,85.70074376,141.3,141.24,12.12505056]
[1741321209637,78.62364376,141.3,141.28,12.12505056]
[1741321210041,78.62364376,141.33,141.28,12.12505056]
[1741321210645,78.62364376,141.33,141.29,0.04973618]
[1741321210646,0.05207125,141.32,141.29,0.04973618]
[1741321211238,7.0769,141.3,141.29,0.04973618]
[1741321211737,7.0769,141.3,141.29,3.618e-05]
[1741321212138,33.8769,141.3,141.29,3.618e-05]
[1741321212544,52.80788019,141.3,141.29,3.618e-05]
[1741321213051,45.73098019,141.3,141.23,1.9623]
[1741321213244,7.08,141.24,141.2,1.9137]
[1741321213445,18.93098019,141.28,141.2,1.9137]
[1741321214250,7.0802,141.24,141.23,0.04620989]
[1741321216353,18.93098019,141.24,141.16,1.9243]
[1741321216557,18.93098019,141.22,141.16,1.9243]
[1741321216756,45.71098019,141.22,141.16,1.9243]
[1741321216952,7.0829,141.19,141.16,1.9243]
[1741321217555,7.13063566,141.19,141.16,1.97656625]
[1741321220555,0.04773566,141.19,141.16,0.05226625]
[1741321220760,26.78,141.18,141.16,0.05226625]
[1741321220959,7.0835,141.17,141.16,0.05226625]
[1741321224265,45.71098019,141.18,141.05,18.93098019]
[1741321224464,7.084,141.16,141.08,45.71098019]
[1741321224765,7.084,141.16,141.1,7.0869]
[1741321225063,7.084,141.16,141.08,45.71098019]
[1741321225567,0.05246977,141.13,141.11,0.05380207]
[1741321227358,0.05246977,141.13,141.11,7.14010207]
[1741321230861,0.05246977,141.13,141.11,0.05380207]
[1741321232267,0.05246977,141.13,141.11,2.03120207]
[1741321232470,0.05246977,141.13,141.12,7.086]
[1741321233263,26.8,141.19,141.11,2.03120207]
[1741321233462,7.0836,141.17,141.13,7.0853]
[1741321233673,26.8,141.2,141.12,45.73098019]
[1741321233864,33.8824,141.2,141.15,7.0841]
[1741321234059,7.0824,141.2,141.15,7.0841]
[1741321234263,26.8,141.21,141.12,45.73098019]
[1741321234470,0.04723049,141.19,141.16,0.05146651]
[1741321234773,0.04723049,141.19,141.16,7.13506651]
[1741321235572,0.04723049,141.19,141.16,0.05146651]
[1741321236966,7.0835,141.17,141.16,0.05146651]
[1741321238174,33.8635,141.17,141.16,0.05146651]
[1741321238571,26.78,141.17,141.09,1.9185]
[1741321238866,18.93098019,141.16,141.09,1.9185]
[1741321239763,0.04833569,141.14,141.11,0.04803255]
[1741321240267,26.78,141.13,141.11,0.04803255]
[1741321240876,33.8655,141.13,141.11,0.04803255]
[1741321241574,26.78,141.13,141.11,0.04803255]
[1741321242276,0.04833569,141.14,141.11,0.04803255]
[1741321243782,7.0855,141.13,141.11,0.04803255]
[1741321245779,7.086,141.12,141.11,0.04803255]
[1741321247085,7.0855,141.13,141.11,0.04803255]
[1741321247585,0.04833569,141.14,141.11,0.04803255]
[1741321248585,0.04833569,141.14,141.11,7.13413255]
[1741321255690,0.04833569,141.14,141.13,7.0855]
[1741321255990,7.0831,141.18,141.11,0.04803255]
[1741321256178,18.93098019,141.21,141.12,18.93098019]
[1741321256378,97.55462395,141.23,141.13,28.8022]
[1741321256586,26.78,141.22,141.13,28.8022]
[1741321257189,0.04537172,141.19,141.16,0.04770018]
[1741321259491,0.04537172,141.19,141.16,18.97868037]
[1741321259685,78.62364376,141.23,141.16,18.97868037]
[1741321259894,85.70424376,141.23,141.19,7.0823]
[1741321260087,78.62364376,141.23,141.18,45.71098019]
[1741321260694,78.62364376,141.23,141.18,26.78]
[1741321260888,0.04821802,141.22,141.19,0.05078812]
[1741321261094,7.082,141.2,141.19,0.05078812]
[1741321261492,0.04821802,141.22,141.19,0.05078812]
[1741321261696,7.12961802,141.22,141.19,0.05078812]
[1741321261895,0.04821802,141.22,141.19,0.05078812]
[1741321262789,0.04821802,141.22,141.19,7.13328812]
[1741321263289,0.04821802,141.22,141.21,7.0815]
[1741321263490,96.31291719,141.26,141.21,7.0815]
[1741321263889,96.31291719,141.26,141.21,9.0419]
[1741321264488,103.39191719,141.26,141.21,1.9604]
[1741321264688,0.05021826,141.25,141.22,18.98074593]
[1741321264991,7.0781,141.28,141.23,26.76]
[1741321265691,26.76,141.29,141.23,26.76]
[1741321265894,105.38364376,141.32,141.24,18.93098019]
[1741321266095,0.05239748,141.27,141.24,18.93098019]
[1741321266302,85.69974376,141.32,141.27,7.0783]
[1741321266485,85.69974376,141.32,141.27,7.13059285]
[1741321266688,7.0761,141.32,141.27,7.13059285]
[1741321266896,7.0761,141.32,141.27,0.05229285]
[1741321267485,0.04689852,141.31,141.27,0.05229285]
[1741321267689,0.04689852,141.31,141.27,7.13049285]
[1741321267890,0.04689852,141.31,141.27,33.89049285]
[1741321268687,0.04689852,141.31,141.27,35.84109285]
[1741321268891,0.04689852,141.31,141.27,28.76289285]
[1741321269796,7.12379852,141.31,141.27,28.76289285]
[1741321270198,0.04689852,141.31,141.27,28.76289285]
[1741321270395,7.077,141.3,141.27,28.76289285]
[1741321270596,0.04689852,141.31,141.27,28.76289285]
[1741321271487,7.0778,141.29,141.27,28.76289285]
[1741321271692,0.04689852,141.31,141.27,0.05229285]
[1741321272995,7.077,141.3,141.27,0.05229285]
[1741321273901,7.0778,141.29,141.27,0.05229285]
[1741321274101,0.04689852,141.31,141.27,0.05229285]
[1741321274395,0.04689852,141.31,141.27,7.13029285]
[1741321274795,0.04689852,141.31,141.27,9.05289285]
[1741321276501,7.12339852,141.31,141.27,9.05289285]
[1741321279095,0.04689852,141.31,141.29,7.0771]
[1741321279502,0.04689852,141.31,141.28,18.93098019]
[1741321280997,7.12339852,141.31,141.28,18.93098019]
[1741321281507,0.04689852,141.31,141.27,1.97489285]
[1741321282402,7.12349852,141.31,141.27,9.05329285]
[1741321283002,0.04689852,141.31,141.27,9.05329285]
[1741321283203,0.04689852,141.31,141.28,18.93098019]
[1741321283598,0.04689852,141.31,141.29,8.986]
[1741321283998,26.74,141.38,141.29,1.9086]
[1741321284198,7.074,141.36,141.31,7.0761]
[1741321284399,26.74,141.38,141.31,7.0761]
[1741321284600,26.74,141.38,141.3,45.67098019]
[1741321284804,21.11088019,141.41,141.3,45.67098019]
[1741321285004,26.74,141.4,141.3,45.67098019]
[1741321285309,0.04524619,141.37,141.34,0.04802981]
[1741321286504,7.074,141.36,141.34,0.04802981]
[1741321289611,7.11884619,141.37,141.34,0.04802981]
[1741321289807,0.04524619,141.37,141.34,0.04802981]
[1741321290000,0.04524619,141.37,141.35,7.0744]
[1741321290204,0.04524619,141.37,141.34,45.71901]
[1741321290405,0.04524619,141.37,141.34,28.82562981]
[1741321290699,7.0741,141.36,141.34,28.82562981]
[1741321290904,0.04524619,141.37,141.34,28.82562981]
[1741321291515,7.11904619,141.37,141.34,28.82562981]
[1741321292106,0.04524619,141.37,141.34,28.82562981]
[1741321294514,0.04524619,141.37,141.35,12.10358569]
[1741321295016,7.11904619,141.37,141.35,12.10358569]
[1741321295413,0.04524619,141.37,141.34,2.08562981]
[1741321295610,7.0739,141.36,141.34,2.08562981]
[1741321295914,0.04524619,141.37,141.34,2.08562981]
[1741321296519,7.11914619,141.37,141.34,2.08562981]
[1741321296706,0.04524619,141.37,141.34,2.08562981]
[1741321296905,7.0743,141.36,141.34,0.04802981]
[1741321297207,0.04524619,141.37,141.34,0.04802981]
[1741321298416,7.0744,141.35,141.34,0.04802981]
[1741321299818,0.04524619,141.37,141.34,0.04802981]
[1741321300019,0.04524619,141.37,141.35,12.10358569]
[1741321300514,7.0739,141.36,141.35,12.10358569]
[1741321301919,0.04524619,141.37,141.35,12.10358569]
[1741321303820,87.76266969,141.42,141.36,26.72]
[1741321304016,26.72,141.44,141.38,12.10358569]
[1741321305123,0.04901279,141.42,141.4,0.04818839]
[1741321305423,7.0718,141.41,141.4,0.04818839]
[1741321310215,0.04901279,141.42,141.4,0.04818839]
[1741321310416,0.04901279,141.42,141.4,12.15177408]
[1741321310828,7.12011279,141.42,141.4,12.15177408]
[1741321311312,0.04901279,141.42,141.4,0.04818839]
[1741321311516,0.04901279,141.42,141.41,12.10358569]
[1741321311917,7.0714,141.41,141.4,26.74818839]
[1741321312317,7.0714,141.41,141.4,0.04818839]
[1741321313529,0.04901279,141.42,141.4,0.04818839]
[1741321314122,7.0714,141.41,141.4,0.04818839]
[1741321317626,0.04901279,141.42,141.36,12.10358569]
[1741321318734,0.04901279,141.42,141.38,0.05038333]
[1741321318930,0.04901279,141.42,141.38,12.15396902]
[1741321320537,7.0724,141.39,141.38,12.15396902]
[1741321320733,7.0724,141.39,141.38,0.05038333]
[1741321322525,7.0743,141.36,141.26,77.97759239]
[1741321322735,38.80358569,141.39,141.33,12.10358569]
[1741321323437,7.0749,141.34,141.33,12.10358569]
[1741321326544,0.04764939,141.37,141.32,0.04899718]
[1741321326545,7.0754,141.33,141.32,0.04899718]
[1741321328132,0.05075533,141.34,141.32,0.04899718]
[1741321328329,0.05075533,141.34,141.33,12.10358569]
[1741321333239,7.0749,141.35,141.33,12.10358569]
[1741321334543,7.1239408,141.35,141.33,12.10358569]
[1741321336132,7.0749,141.34,141.33,12.10358569]
[1741321338641,0.0490408,141.35,141.33,12.10358569]
[1741321339348,0.0490408,141.35,141.32,26.74899718]
[1741321339643,0.0490408,141.35,141.32,0.04899718]
[1741321340040,7.0754,141.34,141.32,0.04899718]
[1741321341839,0.0490408,141.35,141.32,0.04899718]
[1741321342046,7.0749,141.34,141.32,0.04899718]
[1741321342238,0.0490408,141.35,141.32,0.04899718]
[1741321342745,7.0749,141.34,141.32,0.04899718]
[1741321343043,0.0490408,141.35,141.32,0.04899718]
[1741321343237,7.0754,141.33,141.32,0.04899718]
[1741321346248,7.075,141.34,141.32,0.04899718]
[1741321347339,0.0490408,141.35,141.32,0.04899718]
[1741321347546,7.0754,141.33,141.32,0.04899718]
[1741321350445,0.0490408,141.35,141.32,0.04899718]
[1741321350747,0.0490408,141.35,141.33,12.10358569]
[1741321350947,7.0754,141.33,141.32,0.04899718]
[1741321353246,7.0751,141.34,141.32,0.04899718]
[1741321355043,7.1236408,141.35,141.33,12.10358569]
[1741321355341,0.0490408,141.35,141.33,12.10358569]
[1741321356548,7.0749,141.34,141.33,12.10358569]
[1741321356743,0.0490408,141.35,141.33,12.10358569]
[1741321357348,7.1236408,141.35,141.33,12.10358569]